Cogmind - Beta 15 @@@ ROGUE MODE // 2025.07.26 @ 10:54:42 Player: vorpal Result: Destroyed by G-47 Trooper with Particle Gun Performance ------------- Evolutions (0) 0 Regions Visited (2) 400 Robots Destroyed (25) 125 Value Destroyed (575) 575 Prototype IDs (0) 0 Alien Tech Used (0) 0 Bonus (0) 0 TOTAL SCORE: 1100 Bonus ------- None Cogmind --------- Core Integrity 0/250 Matter 225/300 Energy 250/250 System Corruption 0% Temperature Cool (38) Movement Treading (160) Location -10/Mines Parts ------- > --- POWER (1) -------- Ion Engine > --- PROPULSION (2) --- Light Treads Light Treads > --- UTILITY (2) ------ Small Storage Unit > --- WEAPON (2) ------- Light Assault Rifle Slug Cannon > --- INVENTORY (8) ---- Light Ion Engine Improved Treads Improved Treads Core Shielding Beam Cannon Light Assault Rifle Mining Laser Peak State ------------ > --- POWER ------------ Ion Engine > --- PROPULSION ------- Improved Treads Improved Treads > --- UTILITY ---------- Heat Sink Small Storage Unit > --- WEAPON ----------- Beam Cannon Beam Cannon > --- INVENTORY -------- Ion Engine Light Treads Light Treads Improved Treads Improved Treads Small Battery Medium Laser Beam Cannon [Rating: 10] Favorites ----------- Power Ion Engine Engine Ion Engine Propulsion Improved Treads Treads Improved Treads Utility Small Storage Unit Device Heat Sink Storage Small Storage Unit Weapon Beam Cannon Energy Cannon Beam Cannon Ballistic Gun Light Assault Rifle Ballistic Cannon Slug Cannon Build | -11 -10 -10 ------- Run | Yrd Mat Min Slots Evolved . | . . . Power . | . . . Propulsion . | . . . Utility . | . . . Weapon . | . . . Parts Attached 17 | 6 8 3 Power 3 | 1 1 1 Engine 3 | 1 1 1 Core . | . . . Reactor . | . . . Propulsion 4 | 2 2 . Treads 4 | 2 2 . Leg . | . . . Wheel . | . . . Hover . | . . . Flight . | . . . Utility 3 | 1 2 . Device 1 | . 1 . Storage 2 | 1 1 . Processor . | . . . Hackware . | . . . Protection . | . . . Artifact . | . . . Weapon 7 | 2 3 2 Energy Gun . | . . . Energy Cannon 3 | . 3 . Ballistic Gun 3 | 2 . 1 Ballistic Cannon 1 | . . 1 Launcher . | . . . Special Weapon . | . . . Impact Weapon . | . . . Slashing Weapon . | . . . Piercing Weapon . | . . . Special Melee Weapon . | . . . Unidentified Prototypes . | . . . Parts Lost 7 | . 1 6 Power 2 | . 1 1 Propulsion 2 | . . 2 Utility 1 | . . 1 Weapon 2 | . . 2 Highest Loss Streak 3 | . 1 3 To Critical Strikes . | . . . Average Backups 6 | 3 7 6 Power . | . . . Propulsion 3 | 1 3 2 Utility . | . . 1 Weapon 1 | 1 2 2 Tool/Special . | . . . Unused Backups 9 | . 4 5 Power 2 | . 1 1 Propulsion 4 | . 2 2 Utility 1 | . . 1 Weapon 2 | . 1 1 Tool/Special . | . . . Average Slot Usage (%) 96 | . 95 96 Engine 13 | . 13 14 Treads 27 | . 28 25 Device 9 | . 5 13 Storage 16 | . 18 14 Energy Cannon 20 | . 23 17 Ballistic Gun 6 | . 4 9 Peak Build Rating 10 | 6 10 10 Average Rating 8 | 4 8 7 On Entrance 5 | . 6 10 Naked Turns . | . . . Heaviest Build 19 | 12 17 19 Greatest Support 46 | 40 46 46 Greatest Overweight (x) 4 | 3 . 4 Average Overweight (x) . | . . . Largest Inventory Capacity 8 | 8 8 8 Average Capacity 7 | 7 8 8 Most Carried 8 | 6 8 8 Average Carried 6 | 3 7 6 Final Capacity 8 | 8 8 8 Final Carried 8 | 4 8 7 Class Distribution -------------------- 100% | Mutant Dominant Class ---------------- Mutant | -10/Materials Mutant | -10/Mines Resources | -11 -10 -10 ----------- Run | Yrd Mat Min Matter Collected 404 | 243 102 59 Remotely . | . . . Salvage Created 660 | . 433 227 Parts 41 | . 21 20 Haulers Intercepted . | . . . Recyclers Shooed . | . . . Parts Field Recycled . | . . . Retrieved Matter . | . . . Parts Self-Destructed . | . . . Prevented . | . . . Kills | -11 -10 -10 ------- Run | Yrd Mat Min Combat Hostiles Destroyed 25 | . 13 12 Cannons 24 | . 12 12 Classes Destroyed 2 | . 2 . Swarmer 12 | . 3 9 Grunt 13 | . 10 3 Best Kill Streak 4 | . 4 3 Combat Bots Only 4 | . 4 3 Max Kills in Single Turn 2 | . 2 1 Gunslinging . | . . . Exploded . | . . . Melee . | . . . Uniques/NPCs Destroyed . | . . . Combat | -11 -10 -10 -------- Run | Yrd Mat Min Hostile Shots Fired 170 | . 65 105 Missed 38 | . 15 23 Hits 132 | . 50 82 Projectile 132 | . 50 82 Critical Strikes 2 | . . 2 Damage Taken 1281 | . 487 794 Core 258 | . 83 175 Absorbed by Shields . | . . . Core Remaining (%) 100 | 100 . . Volleys Fired 72 | . 29 43 Largest 2 | . 2 2 Hottest 120 | . 120 120 Shots Fired 128 | . 56 72 Gun 16 | . 1 15 Cannon 112 | . 55 57 Launcher . | . . . Special . | . . . Kinetic 26 | . 1 25 Thermal 102 | . 55 47 Explosive . | . . . Electromagnetic . | . . . Robot Hit Streak 9 | . 9 5 Robot Miss Streak 5 | . 2 5 Penetration Max . | . . . Secondary Targets . | . . . Shots Hit Robots 66 | . 33 33 Core Hits 25 | . 13 12 Critical Kills 1 | . 1 . Critical Parts Destroyed . | . . . Critical Strikes 1 | . 1 . Meltdown 1 | . 1 . Melee Attacks . | . . . Impact . | . . . Slashing . | . . . Piercing . | . . . Sneak Attacks . | . . . Combat Hostiles . | . . . Follow-up Attacks . | . . . Damage Inflicted 1178 | . 614 564 Guns 79 | . . 79 Cannons 1086 | . 611 475 Explosions . | . . . Melee . | . . . Ramming 13 | . 3 10 Kinetic 152 | . . 152 Thermal 1013 | . 611 402 Explosive . | . . . Electromagnetic . | . . . Impact . | . . . Slashing . | . . . Piercing . | . . . Highest Corruption . | . . . Average Corruption . | . . . Corruption Purged . | . . . Corruption Blocked . | . . . Overload Shots . | . . . Overflow Damage 19 | . 4 15 Projectiles 19 | . 4 15 Explosions . | . . . Melee . | . . . Knockbacks 1 | . . 1 Impact 1 | . . 1 Kinetic . | . . . Secondary . | . . . Self-Inflicted Damage . | . . . Shots . | . . . Rammed 4 | . 2 2 Targets Rammed 4 | . 2 2 Kicked . | . . . Crushed . | . . . Highest Temperature 453 | . 453 270 Average Temperature 112 | . 145 67 Received Heat Transfer 381 | . 156 225 Effects 1 | . 1 . Shutdowns 1 | . 1 . Siege Activations . | . . . Martial Activations . | . . . Shielding Activations . | . . . Robots Disrupted . | . . . Combat Hostiles . | . . . Robots Corrupted . | . . . Combat Hostiles . | . . . Parts Fried . | . . . Impact Corruptions . | . . . Robots Melted 1 | . 1 . Combat Hostiles 1 | . 1 . Parts Melted 4 | . 2 2 Heat Transferred 2146 | . 1295 851 Parts Sabotaged . | . . . Parts Stolen . | . . . Parts Stripped . | . . . Power Chain Reactions . | . . . Alert | -11 -10 -10 ------- Run | Yrd Mat Min Maximum Alert Level . | . . . Low Security (%) 100 | 100 100 100 Level 1 . | . . . Level 2 . | . . . Level 3 . | . . . Level 4 . | . . . Level 5 . | . . . High Security . | . . . Max Security . | . . . Peak Influence 113 | . 105 113 Initial 13 | . . 13 Average 37 | . 42 34 Influence Increases 691 | . 396 295 Destroy 0b10 Robot/C 500 | . 260 240 Destroy Leader 110 | . 70 40 Successful Hack 15 | . 5 10 Destroy Structure 6 | . 1 5 Lose Combat Pursuer 60 | . 60 . Influence Decreases 684 | . 362 322 Entered New Map 21 | . . 21 Time Decay 539 | . 298 241 Lost Part 70 | . 10 60 Purge Threat 54 | . 54 . Squads Dispatched 7 | . 6 1 Investigation 5 | . 4 1 Extermination . | . . . Reinforcement 2 | . 2 . Assault . | . . . Garrison . | . . . Intercept . | . . . Searches Triggered . | . . . Construction Impeded . | . . . Haulers Reinforced . | . . . Active Scanning Responses . | . . . Cargo Convoy Interrupts . | . . . Stealth | -11 -10 -10 --------- Run | Yrd Mat Min Distress Signals 1 | . 1 . Communications Jammed . | . . . Distress Signals . | . . . Times Spotted 34 | . 21 13 Peak Tracking Total 5 | . 5 3 Tactical Retreats 4 | . 4 . Traps | -11 -10 -10 ------- Run | Yrd Mat Min Traps Triggered 2 | . 2 . Indirectly . | . . . Trap Hack Attempts . | . . . Triggered . | . . . Disarmed . | . . . Reprogrammed . | . . . Reused . | . . . Traps Extracted . | . . . Installed . | . . . Triggered . | . . . Machines | -11 -10 -10 ---------- Run | Yrd Mat Min Machines Disabled . | . . . Max in Single Turn . | . . . Machines Repaired . | . . . Machines Dismantled . | . . . Machines Sabotaged . | . . . Overloaded Fab Kills . | . . . Hacking | -11 -10 -10 --------- Run | Yrd Mat Min Machines Accessed 5 | . 4 1 Terminals 4 | . 3 1 Fabricators . | . . . Repair Stations . | . . . Recycling Units 1 | . 1 . Scanalyzers . | . . . Garrison Access . | . . . Total Hacks 17 | . 13 4 Successful 5 | . 3 2 Failed 12 | . 10 2 Catastrophic 1 | . 1 . Database Lockouts . | . . . Manual 10 | . 7 3 Terminals 16 | . 12 4 Fabricators . | . . . Repair Stations . | . . . Recycling Units 1 | . 1 . Scanalyzers . | . . . Garrison Access . | . . . Terminal Hacks 4 | . 2 2 Emergency Access Points 1 | . . 1 Unreport Threat 1 | . 1 . Zone Layout 2 | . 1 1 Fabricator Hacks . | . . . Repair Station Hacks . | . . . Recycling Unit Hacks 1 | . 1 . Retrieve Components 1 | . 1 . Scanalyzer . | . . . Garrison Access Hacks . | . . . Unauthorized Hacks . | . . . Terminals . | . . . Fabricators . | . . . Repair Stations . | . . . Recycling Units . | . . . Scanalyzers . | . . . Garrison Access . | . . . Data Cores Recovered . | . . . Used . | . . . Hacking Detections 5 | . 4 1 Full Trace Events 4 | . 3 1 Feedback Events . | . . . Feedback Blocked . | . . . Robot Schematics Acquired . | . . . Robots Built . | . . . Authchips . | . . . Time . | . . . Total Robot Build Rating . | . . . Part Schematics Acquired . | . . . Parts Built . | . . . Authchips . | . . . Time . | . . . Total Part Build Rating . | . . . Parts Repaired . | . . . Time . | . . . Parts Recycled . | . . . Recycled Matter . | . . . Retrieved Matter . | . . . Retrieved Components . | . . . Parts Scanalyzed . | . . . Part Schematics Acquired . | . . . Parts Damaged . | . . . Bothacking | -11 -10 -10 ------------ Run | Yrd Mat Min Used RIF Installer . | . . . Robots Hacked . | . . . Non-combat . | . . . Combat . | . . . Robot Hacks Applied . | . . . Relay Couplers Released . | . . . Fabnet Peak Effective % . | . . . Robots Rewired . | . . . Allies Hacked . | . . . Hacks Repelled . | . . . Allies | -11 -10 -10 -------- Run | Yrd Mat Min Total Allies . | . . . Largest Group . | . . . Highest-Rated Group . | . . . Highest-Rated Ally . | . . . Total Orders . | . . . Ally Attacks . | . . . Total Damage . | . . . Kills . | . . . Allies Corrupted . | . . . Allies Melted . | . . . Intel | -11 -10 -10 ------- Run | Yrd Mat Min Active Infowar (turns) . | . . . Robot Analysis Total . | . . . Derelict Logs Recovered 3 | . . 3 Drone Launches . | . . . Drone Recoveries . | . . . Exploration | -11 -10 -10 ------------- Run | Yrd Mat Min Turns Passed 1869 | 78 1013 778 Spaces Moved 970 | 46 531 393 Core 18 | 15 . 3 Treads 952 | 31 531 390 Legs . | . . . Wheels . | . . . Hover . | . . . Flight . | . . . Fastest Speed 50 | 50 160 160 Average Speed 159 | 141 160 160 Slowest Speed 250 | 200 160 250 Overloaded Moves . | . . . Propulsion Burnouts . | . . . Robots Hopped . | . . . Potential Cave-ins . | . . . Cave-ins Triggered . | . . . Exploration Rate (%) 45 | 4 65 68 Regions Visited 2 Branch Regions 1 Pre-discovered Areas . | . . . Known Exits Taken . | . . . Unknown Exits Taken 2 | 1 1 . Scrap Searched 1 | . . 1 Spaces Dug . | . . . Terrain Destroyed 5 | . . 5 Melee . | . . . Projectile 5 | . . 5 AOE . | . . . Terrain Rammed . | . . . Walls Destroyed . | . . . Machines Disabled . | . . . Actions | -11 -10 -10 --------- Run | Yrd Mat Min Total 1165 | 57 641 467 Wait 67 | . 49 18 Move 968 | 45 530 393 Hop . | . . . Pick Up 21 | 6 12 3 Fast Attach 6 | 4 1 1 Attach 8 | 2 2 4 Detach 1 | . 1 . Swap 9 | . 6 3 Drop 9 | . 9 . Fire 72 | . 29 43 Melee . | . . . Ram . | . . . Kick . | . . . Crush 4 | . 2 2 Escape Stasis . | . . . Rewire . | . . . Trap . | . . . Miscellaneous . | . . . Route ------- -11/Scrapyard -10/Materials (discovered 3 exits: *Mat x2 / *Min) -10/Mines (discovered 2 exits: *Mat x2) History --------- Turn | Location | Event 33 | -11/Scrapyard | Discovered new exit (range 14) 79 | -11/Scrapyard | Entered Materials 179 | -10/Materials | Discovered new exit (range 7) 204 | -10/Materials | Discovered new exit (range 16) 305 | -10/Materials | Build established: Mutant 735 | -10/Materials | Discovered new exit (range 15) 1092 | -10/Materials | Entered Mines 1213 | -10/Mines | Identified exit to Materials 1308 | -10/Mines | Core integrity fell below 50% 1346 | -10/Mines | Lost 3 parts (1n2w) 1349 | -10/Mines | Core integrity fell below 20% 1366 | -10/Mines | Discovered exit to Materials (range 8) 1814 | -10/Mines | A weapon hastily lodged in a ceiling crevice suddenly fell to the ground 1870 | -10/Mines | Destroyed by G-47 Trooper with Particle Gun Last Messages --------------- 01486_ Slammed into R-06 Scavenger. 01595_ U-05 Engineer lays Concrete. 01623_ K-01 Serf collects debris. 01692_ Slammed into T-07 Excavator. 01692_ T-07 Excavator knocked back. 01720_ A derelict emerges from the shadows: "What are you doing alone down here?" 01722_ IS-7UF(g): "Well, at least you look like you can take care of yourself!" 01724_ IS-7UF(g): "I have the funny feeling that things are about to get a lot worse around here, see you around!" 01724_ IS-7UF(g) slips back into the shadows. 01814_ A Slug Cannon has been hastily shoved under some rubble with a note attached: "It's not as slow as it sounds." 01817_ Acquired Slug Cannon. 01846_ G-34 Mercenary destroyed. 01856_ Critical hit (Burn: +37). 01864_ Heat Sink destroyed. Map ----- +----------------------------------------------------+ | ??????????????????????## ##????????### ### | | ???????????????????????#### ##?????????## ##?# | | ??????????????????????????## #??????????###??# | | ???????????????????????????# #???????????????# | | ???????????????????????????## ##??????????????## | | ????????????????????????????## #???????????????# | | ?????????????????????????????# #??????????????## " | | ?????????????????????????????# #????????????### " | | ?????????????????????????????# #???????????## " | | ?????????????????????????????# #???######### | | ?????????????????????????????# #???# % | | ?????????????????????????????# ##### ####### | | ?????????????????????????????# #?????# ## | | ?????????????????????????????# #### ##?????# ##? | | ?????????????????????????????# #??# #?????## ##? | | ?????????????????????????????# #??# #???### #? | | ?????????????????????????????# #??# ##### #? | | ?????????????????????????????# #??# #? | | ?????????????????????????????# #??###### ##? | | ?????????????????????????????# #?####??# ####?? | | ?????????????????????????????# #?# ##?## ##????? | | ????????????????????????# #### ### #??## #?????? | | ????????????????????????# ##??# #?????? | | ??????????????????????######### ## #??# #?????? | | ???????????????""" ####;;#;#### ## #??# #?????? | | ???????????????"""%g @ u ### ##### #?????? | | ???????????????"""%###;;#########?# #?????? | | ?????????????????????#????????????# #?????? | | ??????????????????????????????????# #####?????? | | ??????????????????????????????????## ##?????????? | | ???????????????????????????????????####??????????? | | ?????????????????????????????????????????????????? | | ?????????????????????????????????????????????????? | | | | | | | | | | | | | | | | | | | | | | | | | | | | | | | | | | | +----------------------------------------------------+ Best States ------------- Heat Dissipation 35 Energy Generation 10 Energy Capacity 350 Matter Stores 300 Matter Capacity 300 Sight Range 16 Terrain Scan Density 10 Evasion (%) 40 Recoil Reduction 2 Item Schematics ----------------- None Robot Schematics ------------------ None Fabricated ------------ Nothing Repaired ---------- Nothing Alien Tech Used ----------------- None Achievements -------------- Everything Is Under Control Challenges ------------ None Game ------ Seed HugeBlastBrace Manual? 0 Play Time 00:39:56 Cumulative 6.0 hours Start 2025.07.26 @ 09:06:11 End 2025.07.26 @ 10:54:42 Sessions 14 Manual Loads 0 Difficulty Rogue Special Mode None Game No. 8 Rogue 8 Adventurer 0 Explorer 0 Win Type - Total 0 Types 0/0/0/0/0/0/0/0/0/0 Lore% 6 Gallery% 5 Achievement% 7 Wizard Run 0 Options --------- Layout 1 ASCII 0 Keyboard 0 Movement Mouse Keybinds 0 Fullscreen 2 Font 24/Crisp Map View 50x35 Zoom Use 0% Tactical HUD 1 Map Filters NONE Filters NONE Steam 1 RUN: 60636c54-cefb-40c7-9459-c33c6aa1df37